[Event "*** Titled Tuesday Blitz"]
[Site "Chess.com"]
[Date "2020.10.27"]
[Round "11"]
[White "AniJak"]
[Black "mapleaff"]
[Result "0-1"]
[WhiteElo "2279"]
[BlackElo "2378"]
[TimeControl "180+1"]
[EndTime "12:06:09 PDT"]
[Termination "mapleaff won by resignation"]

1. e4 {[%clk 0:03:00.5]} 1... d6 {[%clk 0:02:59.2]} 2. d4 {[%clk 0:02:58.6]}
2... Nf6 {[%clk 0:02:57.3]} 3. Nc3 {[%clk 0:02:58]} 3... c6 {[%clk 0:02:56.4]}
4. a4 {[%clk 0:02:57]} 4... Qa5 {[%clk 0:02:53.1]} 5. Bd2 {[%clk 0:02:51.9]}
5... Qc7 {[%clk 0:02:51.9]} 6. Nf3 {[%clk 0:02:50.1]} 6... Bg4 {[%clk 0:02:50]}
7. Be2 {[%clk 0:02:49.6]} 7... Nbd7 {[%clk 0:02:49]} 8. O-O {[%clk 0:02:49.4]}
8... e5 {[%clk 0:02:46.5]} 9. h3 {[%clk 0:02:44.3]} 9... Bxf3 {[%clk 0:02:44.7]}
10. Bxf3 {[%clk 0:02:43.3]} 10... exd4 {[%clk 0:02:44.8]} 11. Ne2 {[%clk
0:02:43.2]} 11... c5 {[%clk 0:02:44]} 12. Bf4 {[%clk 0:02:35.6]} 12... Ne5
{[%clk 0:02:39.6]} 13. Ng3 {[%clk 0:02:32]} 13... g6 {[%clk 0:02:33.9]} 14. Be2
{[%clk 0:02:29.2]} 14... Bg7 {[%clk 0:02:32.5]} 15. Qd2 {[%clk 0:02:28.3]} 15...
O-O {[%clk 0:02:29.1]} 16. Bh6 {[%clk 0:02:24.4]} 16... Rae8 {[%clk 0:02:27.9]}
17. Bxg7 {[%clk 0:02:19.6]} 17... Kxg7 {[%clk 0:02:28.8]} 18. f4 {[%clk
0:02:19.3]} 18... Nc6 {[%clk 0:02:27.5]} 19. Bf3 {[%clk 0:02:19]} 19... Qa5
{[%clk 0:02:16.4]} 20. Qd1 {[%clk 0:02:12.8]} 20... Qb6 {[%clk 0:02:07.8]} 21.
b3 {[%clk 0:02:04.5]} 21... d3 {[%clk 0:02:00.9]} 22. Kh1 {[%clk 0:01:57.5]}
22... dxc2 {[%clk 0:01:56.1]} 23. Qxc2 {[%clk 0:01:57.4]} 23... Nd4 {[%clk
0:01:55.8]} 24. Qf2 {[%clk 0:01:46.5]} 24... Qxb3 {[%clk 0:00:48.8]} 25. e5
{[%clk 0:01:45]} 25... dxe5 {[%clk 0:00:42.8]} 26. fxe5 {[%clk 0:01:45.3]} 26...
Rxe5 {[%clk 0:00:39.8]} 27. Rab1 {[%clk 0:01:41]} 27... Qxa4 {[%clk 0:00:38.1]}
28. Bxb7 {[%clk 0:01:30]} 28... Nf5 {[%clk 0:00:29.4]} 29. Ne2 {[%clk
0:01:10.4]} 29... Rxe2 {[%clk 0:00:19.1]} 30. Qxc5 {[%clk 0:01:00.7]} 30... Ng3+
{[%clk 0:00:16.1]} 31. Kh2 {[%clk 0:00:59.2]} 31... Nxf1+ {[%clk 0:00:16.1]} 32.
Rxf1 {[%clk 0:00:59.5]} 32... Qd7 {[%clk 0:00:11.3]} 33. Ba6 {[%clk 0:00:49.8]}
33... Qe7 {[%clk 0:00:09]} 34. Qc3 {[%clk 0:00:46.9]} 34... Qe5+ {[%clk
0:00:08.3]} 35. Qxe5 {[%clk 0:00:45.6]} 35... Rxe5 {[%clk 0:00:09.2]} 36. Bd3
{[%clk 0:00:44.6]} 36... Rd8 {[%clk 0:00:08.8]} 37. Bc4 {[%clk 0:00:44.9]} 37...
Rc5 {[%clk 0:00:07.4]} 38. Bb3 {[%clk 0:00:44.3]} 38... Rc3 {[%clk 0:00:06.9]}
39. Bd1 {[%clk 0:00:43.5]} 39... Rc1 {[%clk 0:00:05.1]} 40. Rxf6 {[%clk
0:00:33.5]} 40... Kxf6 {[%clk 0:00:03.9]} 41. Bf3 {[%clk 0:00:34.4]} 41... a5
{[%clk 0:00:04]} 42. Kg3 {[%clk 0:00:34.8]} 42... a4 {[%clk 0:00:04.2]} 43. h4
{[%clk 0:00:34.8]} 43... a3 {[%clk 0:00:04.2]} 44. Kf2 {[%clk 0:00:35.7]} 44...
a2 {[%clk 0:00:04.2]} 45. g4 {[%clk 0:00:36.6]} 45... a1=Q {[%clk 0:00:03.8]}
46. g5+ {[%clk 0:00:37.5]} 46... Kg7 {[%clk 0:00:03.4]} 47. h5 {[%clk 0:00:37]}
47... Qd4+ {[%clk 0:00:02.9]} 48. Kg3 {[%clk 0:00:37.1]} 48... Rg1+ {[%clk
0:00:03.1]} 49. Bg2 {[%clk 0:00:37]} 49... Qe3+ {[%clk 0:00:02.3]} 50. Kh2
{[%clk 0:00:37.3]} 50... Rd4 {[%clk 0:00:03.2]} 51. h6+ {[%clk 0:00:37]} 51...
Kg8 {[%clk 0:00:03]} 0-1

[Event "*** Titled Tuesday Blitz"]
[Site "Chess.com"]
[Date "2020.10.27"]
[Round "11"]
[White "AntonovaNadezhda"]
[Black "kreonx"]
[Result "0-1"]
[WhiteElo "2110"]
[BlackElo "2311"]
[TimeControl "180+1"]
[EndTime "12:06:09 PDT"]
[Termination "kreonx won by resignation"]

1. d4 {[%clk 0:03:00.9]} 1... Nf6 {[%clk 0:02:56]} 2. Nf3 {[%clk 0:03:01.4]}
2... e6 {[%clk 0:02:56.1]} 3. e3 {[%clk 0:03:00.7]} 3... d5 {[%clk 0:02:55.8]}
4. Nbd2 {[%clk 0:03:00.8]} 4... c5 {[%clk 0:02:55.8]} 5. b3 {[%clk 0:02:59.1]}
5... cxd4 {[%clk 0:02:51.3]} 6. exd4 {[%clk 0:02:58.6]} 6... Bd6 {[%clk
0:02:48.7]} 7. Bb2 {[%clk 0:02:58.2]} 7... Nc6 {[%clk 0:02:48]} 8. Bd3 {[%clk
0:02:54.9]} 8... O-O {[%clk 0:02:46.8]} 9. O-O {[%clk 0:02:54]} 9... Qc7 {[%clk
0:02:46.3]} 10. a3 {[%clk 0:02:52.6]} 10... e5 {[%clk 0:02:31.9]} 11. dxe5
{[%clk 0:02:51.7]} 11... Nxe5 {[%clk 0:02:32.8]} 12. Nxe5 {[%clk 0:02:51]} 12...
Bxe5 {[%clk 0:02:33.7]} 13. Bxe5 {[%clk 0:02:51.2]} 13... Qxe5 {[%clk
0:02:34.6]} 14. Nf3 {[%clk 0:02:50.9]} 14... Qc3 {[%clk 0:02:33.4]} 15. h3
{[%clk 0:02:47.9]} 15... Ne4 {[%clk 0:02:24.9]} 16. Re1 {[%clk 0:02:34.6]} 16...
Re8 {[%clk 0:02:24.6]} 17. Bxe4 {[%clk 0:02:26.2]} 17... dxe4 {[%clk 0:02:23.8]}
18. Rxe4 {[%clk 0:02:24.9]} 18... Bf5 {[%clk 0:02:10.8]} 19. Rxe8+ {[%clk
0:02:17.9]} 19... Rxe8 {[%clk 0:02:11.7]} 20. Rc1 {[%clk 0:02:15.6]} 20... Rc8
{[%clk 0:01:58.7]} 21. Qe1 {[%clk 0:01:47.7]} 21... Bxh3 {[%clk 0:01:48.3]} 22.
gxh3 {[%clk 0:01:01.9]} 22... Qxf3 {[%clk 0:01:46.4]} 23. Qe3 {[%clk 0:01:02.2]}
23... Qf5 {[%clk 0:01:16.7]} 24. c4 {[%clk 0:01:00.1]} 24... h6 {[%clk
0:01:05.4]} 25. Re1 {[%clk 0:00:42.5]} 25... Rc6 {[%clk 0:01:04.9]} 26. Qe8+
{[%clk 0:00:40.8]} 26... Kh7 {[%clk 0:01:04.6]} 27. Qe3 {[%clk 0:00:30.9]} 27...
Re6 {[%clk 0:01:01.2]} 28. Qc1 {[%clk 0:00:26.3]} 28... Rg6+ {[%clk 0:01:00.4]}
29. Kf1 {[%clk 0:00:24.3]} 29... Qxh3+ {[%clk 0:00:59.3]} 30. Ke2 {[%clk
0:00:24.1]} 30... Qxb3 {[%clk 0:00:53.8]} 31. Rg1 {[%clk 0:00:20]} 31... Rxg1
{[%clk 0:00:43.8]} 32. Qxg1 {[%clk 0:00:19.7]} 32... Qxc4+ {[%clk 0:00:43.8]}
33. Kd2 {[%clk 0:00:19]} 33... Qa2+ {[%clk 0:00:43.6]} 34. Ke3 {[%clk
0:00:16.8]} 34... Qxa3+ {[%clk 0:00:43.5]} 35. Kd4 {[%clk 0:00:17.7]} 35... Qb4+
{[%clk 0:00:43.4]} 36. Kd5 {[%clk 0:00:17.1]} 36... g6 {[%clk 0:00:32.9]} 37.
Qg3 {[%clk 0:00:15.9]} 37... Qb6 {[%clk 0:00:28.1]} 38. Qb8 {[%clk 0:00:13.1]}
38... Qxf2 {[%clk 0:00:23.5]} 39. Qf8 {[%clk 0:00:09.4]} 39... Qf3+ {[%clk
0:00:22]} 40. Kd4 {[%clk 0:00:09.1]} 40... a6 {[%clk 0:00:20.5]} 41. Qe7 {[%clk
0:00:08.3]} 41... h5 {[%clk 0:00:20]} 42. Qf8 {[%clk 0:00:07.4]} 42... h4 {[%clk
0:00:18.9]} 43. Qd6 {[%clk 0:00:07.6]} 43... Qd1+ {[%clk 0:00:15.7]} 0-1

[Event "*** Titled Tuesday Blitz"]
[Site "Chess.com"]
[Date "2020.10.27"]
[Round "11"]
[White "Vanina1989"]
[Black "Arfan48"]
[Result "0-1"]
[WhiteElo "2599"]
[BlackElo "2457"]
[TimeControl "180+1"]
[EndTime "12:06:12 PDT"]
[Termination "Arfan48 won by checkmate"]

1. d4 {[%clk 0:03:00.9]} 1... Nf6 {[%clk 0:02:58.7]} 2. c4 {[%clk 0:03:01]} 2...
g6 {[%clk 0:02:58.7]} 3. Nc3 {[%clk 0:03:01.1]} 3... Bg7 {[%clk 0:02:59.4]} 4.
e4 {[%clk 0:03:01.4]} 4... d6 {[%clk 0:03:00.1]} 5. Nf3 {[%clk 0:03:01.5]} 5...
O-O {[%clk 0:03:00.6]} 6. Be2 {[%clk 0:03:02.2]} 6... Na6 {[%clk 0:03:00.6]} 7.
O-O {[%clk 0:03:02.6]} 7... e5 {[%clk 0:03:01.1]} 8. Be3 {[%clk 0:03:02.4]} 8...
Ng4 {[%clk 0:02:59]} 9. Bg5 {[%clk 0:03:02.7]} 9... Qe8 {[%clk 0:02:57.2]} 10.
h3 {[%clk 0:03:00.6]} 10... f6 {[%clk 0:02:46.3]} 11. Bd2 {[%clk 0:02:58.4]}
11... Nh6 {[%clk 0:02:45.7]} 12. Qc2 {[%clk 0:02:44]} 12... Be6 {[%clk
0:02:38.8]} 13. d5 {[%clk 0:02:39.1]} 13... Bd7 {[%clk 0:02:37.1]} 14. Qc1
{[%clk 0:02:37.8]} 14... Nf7 {[%clk 0:02:37]} 15. a3 {[%clk 0:02:37]} 15... Nc5
{[%clk 0:02:36]} 16. Qc2 {[%clk 0:02:17.6]} 16... f5 {[%clk 0:01:56.5]} 17. b4
{[%clk 0:02:17]} 17... Na4 {[%clk 0:01:40.7]} 18. Nxa4 {[%clk 0:02:12.4]} 18...
Bxa4 {[%clk 0:01:41.6]} 19. Qd3 {[%clk 0:02:12.4]} 19... Bd7 {[%clk 0:01:36.7]}
20. c5 {[%clk 0:02:10.3]} 20... f4 {[%clk 0:01:26.7]} 21. Rac1 {[%clk
0:02:03.4]} 21... Qe7 {[%clk 0:01:13]} 22. cxd6 {[%clk 0:02:00.9]} 22... cxd6
{[%clk 0:01:13.2]} 23. Rc7 {[%clk 0:02:00.9]} 23... Rab8 {[%clk 0:01:12.4]} 24.
Rfc1 {[%clk 0:02:00.3]} 24... Rfc8 {[%clk 0:01:03.3]} 25. Qc3 {[%clk 0:01:53.2]}
25... Qd8 {[%clk 0:00:53.3]} 26. b5 {[%clk 0:01:44.5]} 26... Bf6 {[%clk
0:00:29.6]} 27. Qa5 {[%clk 0:01:37.1]} 27... Rxc7 {[%clk 0:00:25.2]} 28. Rxc7
{[%clk 0:01:35.2]} 28... Kg7 {[%clk 0:00:12.5]} 29. a4 {[%clk 0:01:12.2]} 29...
h5 {[%clk 0:00:12.2]} 30. Ne1 {[%clk 0:00:52.3]} 30... Kh6 {[%clk 0:00:11.2]}
31. Qc3 {[%clk 0:00:39.4]} 31... Ng5 {[%clk 0:00:11.4]} 32. f3 {[%clk
0:00:36.2]} 32... Bxh3 {[%clk 0:00:10.6]} 33. gxh3 {[%clk 0:00:34.7]} 33...
Nxh3+ {[%clk 0:00:11.5]} 34. Kg2 {[%clk 0:00:34.5]} 34... Bh4 {[%clk 0:00:11.6]}
35. Kf1 {[%clk 0:00:20.2]} 35... Qg5 {[%clk 0:00:08.3]} 36. Bd3 {[%clk
0:00:17.2]} 36... Qg1+ {[%clk 0:00:07.3]} 37. Ke2 {[%clk 0:00:17.5]} 37... Nf2
{[%clk 0:00:07]} 38. Bc2 {[%clk 0:00:15.6]} 38... Qh2 {[%clk 0:00:05.4]} 39. Kf1
{[%clk 0:00:11.2]} 39... Nxe4 {[%clk 0:00:05.2]} 40. Be3 {[%clk 0:00:09]} 40...
Nxc3 {[%clk 0:00:03.6]} 41. Rxc3 {[%clk 0:00:08.2]} 41... fxe3 {[%clk
0:00:03.4]} 42. Rxe3 {[%clk 0:00:07.9]} 42... Qf2# {[%clk 0:00:03.1]} 0-1

[Event "*** Titled Tuesday Blitz"]
[Site "Chess.com"]
[Date "2020.10.27"]
[Round "11"]
[White "Chessdreamer2020"]
[Black "blitzking1729"]
[Result "1-0"]
[WhiteElo "2481"]
[BlackElo "2561"]
[TimeControl "180+1"]
[EndTime "12:06:14 PDT"]
[Termination "Chessdreamer2020 won by resignation"]

1. e4 {[%clk 0:02:54.8]} 1... e6 {[%clk 0:02:57.2]} 2. d4 {[%clk 0:02:53.1]}
2... d5 {[%clk 0:02:58.1]} 3. Nd2 {[%clk 0:02:53.5]} 3... h6 {[%clk 0:02:55.9]}
4. c3 {[%clk 0:02:46.9]} 4... c5 {[%clk 0:02:49.8]} 5. exd5 {[%clk 0:02:44.6]}
5... Qxd5 {[%clk 0:02:48.8]} 6. Ngf3 {[%clk 0:02:42.6]} 6... Nc6 {[%clk
0:02:47.7]} 7. Bc4 {[%clk 0:02:40.2]} 7... Qd8 {[%clk 0:02:45.8]} 8. Nb3 {[%clk
0:02:39.2]} 8... cxd4 {[%clk 0:02:43.8]} 9. Nbxd4 {[%clk 0:02:39.3]} 9... Nxd4
{[%clk 0:02:44.1]} 10. Nxd4 {[%clk 0:02:38.4]} 10... Nf6 {[%clk 0:02:43.3]} 11.
O-O {[%clk 0:02:36.5]} 11... Bd7 {[%clk 0:02:42.9]} 12. Qe2 {[%clk 0:02:35.8]}
12... Bd6 {[%clk 0:02:40.3]} 13. Nf5 {[%clk 0:02:32.4]} 13... Bf8 {[%clk
0:02:32]} 14. Bf4 {[%clk 0:02:14.8]} 14... Qb6 {[%clk 0:02:13.3]} 15. Rfd1
{[%clk 0:02:11.7]} 15... Rc8 {[%clk 0:02:06.3]} 16. Bb3 {[%clk 0:02:08.3]} 16...
Bb5 {[%clk 0:01:39.4]} 17. Qe1 {[%clk 0:01:52.7]} 17... Rc5 {[%clk 0:01:22.3]}
18. Be3 {[%clk 0:01:44.4]} 18... Ng4 {[%clk 0:01:14.3]} 19. Bxc5 {[%clk
0:01:42.8]} 19... Bxc5 {[%clk 0:01:14.3]} 20. Nd4 {[%clk 0:01:34.8]} 20... O-O
{[%clk 0:01:13.5]} 21. h3 {[%clk 0:01:32.3]} 21... e5 {[%clk 0:01:12.9]} 22.
hxg4 {[%clk 0:01:23.6]} 22... exd4 {[%clk 0:01:12.7]} 23. cxd4 {[%clk
0:01:09.9]} 23... Bxd4 {[%clk 0:01:12.2]} 24. Rd2 {[%clk 0:01:10.1]} 24... Re8
{[%clk 0:01:01.6]} 25. Qd1 {[%clk 0:01:07]} 25... Bc5 {[%clk 0:00:57.1]} 26. Qf3
{[%clk 0:01:05.5]} 26... Qg6 {[%clk 0:00:41]} 27. Rad1 {[%clk 0:01:00.8]} 27...
Bc6 {[%clk 0:00:39.5]} 28. Qf5 {[%clk 0:00:55.1]} 28... Qxf5 {[%clk 0:00:35.2]}
29. gxf5 {[%clk 0:00:54.9]} 29... Bb6 {[%clk 0:00:35.5]} 30. Bd5 {[%clk
0:00:51.2]} 30... Bxd5 {[%clk 0:00:28.5]} 31. Rxd5 {[%clk 0:00:49.9]} 31... Re2
{[%clk 0:00:28.5]} 32. R1d2 {[%clk 0:00:45.6]} 32... Re4 {[%clk 0:00:23.7]} 33.
Rd7 {[%clk 0:00:42.3]} 33... Re5 {[%clk 0:00:18.4]} 34. R7d5 {[%clk 0:00:40.2]}
34... Re4 {[%clk 0:00:18]} 35. f6 {[%clk 0:00:40.2]} 35... gxf6 {[%clk
0:00:17.1]} 36. Rd7 {[%clk 0:00:39.8]} 36... Ba5 {[%clk 0:00:12.7]} 37. Rc2
{[%clk 0:00:37.5]} 37... Bb4 {[%clk 0:00:10.1]} 38. Rxb7 {[%clk 0:00:35.6]}
38... Bd6 {[%clk 0:00:09.6]} 39. g3 {[%clk 0:00:35.3]} 39... a5 {[%clk 0:00:08]}
40. Kg2 {[%clk 0:00:34.1]} 40... a4 {[%clk 0:00:06.5]} 41. Ra7 {[%clk
0:00:33.8]} 41... Be5 {[%clk 0:00:05.8]} 42. Ra6 {[%clk 0:00:31.7]} 42... Rb4
{[%clk 0:00:05.7]} 43. a3 {[%clk 0:00:28.6]} 43... Re4 {[%clk 0:00:03.7]} 44. f4
{[%clk 0:00:27.7]} 44... Bd4 {[%clk 0:00:03.1]} 45. Rxa4 {[%clk 0:00:26.8]}
45... f5 {[%clk 0:00:03]} 46. Rd2 {[%clk 0:00:24.9]} 1-0

[Event "*** Titled Tuesday Blitz"]
[Site "Chess.com"]
[Date "2020.10.27"]
[Round "11"]
[White "WildTricks"]
[Black "Ranindu2003"]
[Result "0-1"]
[WhiteElo "2401"]
[BlackElo "2545"]
[TimeControl "180+1"]
[EndTime "12:06:15 PDT"]
[Termination "Ranindu2003 won by resignation"]

1. Nf3 {[%clk 0:03:00.9]} 1... Nf6 {[%clk 0:02:59.2]} 2. g3 {[%clk 0:03:00.2]}
2... e6 {[%clk 0:02:58.5]} 3. Bg2 {[%clk 0:03:00.1]} 3... d5 {[%clk 0:02:59.2]}
4. O-O {[%clk 0:03:00.6]} 4... Be7 {[%clk 0:03:00.1]} 5. c4 {[%clk 0:03:00.6]}
5... O-O {[%clk 0:03:00.5]} 6. d4 {[%clk 0:03:00.6]} 6... dxc4 {[%clk
0:03:00.9]} 7. Ne5 {[%clk 0:02:59.6]} 7... c5 {[%clk 0:03:01.3]} 8. dxc5 {[%clk
0:02:58.7]} 8... Qc7 {[%clk 0:03:01.9]} 9. Nxc4 {[%clk 0:02:58.1]} 9... Qxc5
{[%clk 0:03:02.4]} 10. b3 {[%clk 0:02:57]} 10... Rd8 {[%clk 0:03:02.1]} 11. Qc2
{[%clk 0:02:56]} 11... Nc6 {[%clk 0:03:02.3]} 12. Nc3 {[%clk 0:02:43.5]} 12...
Qh5 {[%clk 0:02:53.5]} 13. Be3 {[%clk 0:02:19.1]} 13... e5 {[%clk 0:02:52.3]}
14. Rfd1 {[%clk 0:02:18.1]} 14... Bf5 {[%clk 0:02:42.2]} 15. Qb2 {[%clk
0:02:14]} 15... Ng4 {[%clk 0:02:40.5]} 16. h4 {[%clk 0:02:00.3]} 16... Bxh4
{[%clk 0:02:24.9]} 17. gxh4 {[%clk 0:01:55.6]} 17... Qxh4 {[%clk 0:02:25.8]} 18.
Nd5 {[%clk 0:01:25.2]} 18... Qh2+ {[%clk 0:02:10.9]} 19. Kf1 {[%clk 0:01:24.3]}
19... Nxe3+ {[%clk 0:02:10.7]} 20. Ncxe3 {[%clk 0:01:14.8]} 20... Bh3 {[%clk
0:02:09.3]} 21. f3 {[%clk 0:01:05.5]} 21... Nd4 {[%clk 0:02:08]} 22. Kf2 {[%clk
0:00:50.3]} 22... Bxg2 {[%clk 0:01:06.9]} 23. Nxg2 {[%clk 0:00:49.8]} 23... Qh6
{[%clk 0:01:04.8]} 24. Rh1 {[%clk 0:00:42.1]} 24... Qd6 {[%clk 0:00:57.1]} 25.
e4 {[%clk 0:00:37.5]} 25... Rac8 {[%clk 0:00:54.5]} 26. Rac1 {[%clk 0:00:35.9]}
26... Kh8 {[%clk 0:00:48.4]} 27. Nge3 {[%clk 0:00:30]} 27... Rxc1 {[%clk
0:00:45.2]} 28. Qxc1 {[%clk 0:00:22.7]} 28... Qa6 {[%clk 0:00:45.2]} 29. Qc7
{[%clk 0:00:17.4]} 29... Qe2+ {[%clk 0:00:44.4]} 30. Kg3 {[%clk 0:00:15.1]}
30... Qxf3+ {[%clk 0:00:44.7]} 31. Kh2 {[%clk 0:00:14]} 31... Re8 {[%clk
0:00:35.6]} 32. Rg1 {[%clk 0:00:11.4]} 32... Ne2 {[%clk 0:00:25.3]} 33. Rg4
{[%clk 0:00:07.1]} 33... Qf2+ {[%clk 0:00:20.5]} 34. Kh3 {[%clk 0:00:07]} 34...
Ng1+ {[%clk 0:00:18.3]} 35. Rxg1 {[%clk 0:00:05.5]} 35... Qxg1 {[%clk
0:00:19.2]} 36. Qxf7 {[%clk 0:00:06]} 36... Rg8 {[%clk 0:00:16.4]} 37. Ne7
{[%clk 0:00:05.3]} 37... Qxe3+ {[%clk 0:00:16.2]} 38. Kh2 {[%clk 0:00:04.9]}
38... Qe2+ {[%clk 0:00:15.2]} 39. Kg3 {[%clk 0:00:03.9]} 39... Rd8 {[%clk
0:00:13.8]} 40. Nd5 {[%clk 0:00:01.9]} 40... Qe1+ {[%clk 0:00:13.6]} 41. Kf3
{[%clk 0:00:01.4]} 41... Qf1+ {[%clk 0:00:13.5]} 0-1

[Event "*** Titled Tuesday Blitz"]
[Site "Chess.com"]
[Date "2020.10.27"]
[Round "11"]
[White "Karateloru"]
[Black "Arseniy_Nesterov"]
[Result "1-0"]
[WhiteElo "2699"]
[BlackElo "2796"]
[TimeControl "180+1"]
[EndTime "12:06:20 PDT"]
[Termination "Karateloru won by resignation"]

1. Nf3 {[%clk 0:03:00.9]} 1... d5 {[%clk 0:02:56.7]} 2. e3 {[%clk 0:03:00]} 2...
Nf6 {[%clk 0:02:56.6]} 3. c4 {[%clk 0:02:58.6]} 3... c6 {[%clk 0:02:56.5]} 4. b3
{[%clk 0:02:58.2]} 4... e6 {[%clk 0:02:56.5]} 5. Bb2 {[%clk 0:02:57.6]} 5... Bd6
{[%clk 0:02:57]} 6. d4 {[%clk 0:02:54.7]} 6... O-O {[%clk 0:02:54.6]} 7. Bd3
{[%clk 0:02:54.2]} 7... Nbd7 {[%clk 0:02:53.4]} 8. O-O {[%clk 0:02:53.6]} 8...
b6 {[%clk 0:02:50.4]} 9. Nbd2 {[%clk 0:02:53.5]} 9... Bb7 {[%clk 0:02:44]} 10.
Qc2 {[%clk 0:02:53.1]} 10... Qe7 {[%clk 0:02:37.4]} 11. e4 {[%clk 0:02:52.3]}
11... dxe4 {[%clk 0:02:37.4]} 12. Nxe4 {[%clk 0:02:52.7]} 12... Nxe4 {[%clk
0:02:37.8]} 13. Bxe4 {[%clk 0:02:53.6]} 13... f5 {[%clk 0:02:24.8]} 14. Bd3
{[%clk 0:02:51.3]} 14... c5 {[%clk 0:02:25.3]} 15. d5 {[%clk 0:02:45.2]} 15...
exd5 {[%clk 0:02:19.1]} 16. Bxf5 {[%clk 0:02:42.4]} 16... d4 {[%clk 0:02:13]}
17. Rfe1 {[%clk 0:02:33.7]} 17... Qd8 {[%clk 0:01:58.6]} 18. Bxh7+ {[%clk
0:02:13.2]} 18... Kh8 {[%clk 0:01:58.1]} 19. Be4 {[%clk 0:02:13.8]} 19... Bxe4
{[%clk 0:01:53.8]} 20. Rxe4 {[%clk 0:02:06.6]} 20... Rxf3 {[%clk 0:00:53.1]} 21.
gxf3 {[%clk 0:02:07.5]} 21... Ne5 {[%clk 0:00:53.2]} 22. Kh1 {[%clk 0:02:03.5]}
22... Qf6 {[%clk 0:00:46.7]} 23. Qe2 {[%clk 0:01:56.8]} 23... Rf8 {[%clk
0:00:35.7]} 24. f4 {[%clk 0:01:56.6]} 24... Ng6 {[%clk 0:00:34.4]} 25. Qh5+
{[%clk 0:01:52.4]} 25... Kg8 {[%clk 0:00:34.6]} 26. f5 {[%clk 0:01:44.2]} 26...
Qxf5 {[%clk 0:00:31.7]} 27. Qxf5 {[%clk 0:01:44.1]} 27... Rxf5 {[%clk
0:00:32.6]} 28. Re6 {[%clk 0:01:44.6]} 28... Nh4 {[%clk 0:00:22.3]} 29. Rxd6
{[%clk 0:01:43.9]} 29... Rxf2 {[%clk 0:00:22.5]} 30. Rd8+ {[%clk 0:01:32.4]}
30... Kh7 {[%clk 0:00:21.4]} 31. Bxd4 {[%clk 0:01:31]} 31... cxd4 {[%clk
0:00:21.1]} 32. Kg1 {[%clk 0:01:31.1]} 32... Rd2 {[%clk 0:00:16.2]} 33. Rf1
{[%clk 0:01:26.3]} 33... d3 {[%clk 0:00:11.1]} 34. Rf4 {[%clk 0:01:26.2]} 34...
g5 {[%clk 0:00:10]} 35. Rf6 {[%clk 0:01:15.8]} 35... Kg7 {[%clk 0:00:09.4]} 36.
Rf2 {[%clk 0:00:56.9]} 36... Rd1+ {[%clk 0:00:09.7]} 37. Rf1 {[%clk 0:00:57.2]}
37... Rd2 {[%clk 0:00:10.3]} 38. Rd6 {[%clk 0:00:55.6]} 38... g4 {[%clk
0:00:07.4]} 39. Rf4 {[%clk 0:00:55.2]} 39... Nf3+ {[%clk 0:00:07.4]} 40. Kf1
{[%clk 0:00:55.4]} 40... Nxh2+ {[%clk 0:00:04.6]} 41. Ke1 {[%clk 0:00:55.5]}
41... Rxa2 {[%clk 0:00:04.7]} 42. Rxd3 {[%clk 0:00:54.4]} 42... Nf3+ {[%clk
0:00:05]} 43. Kd1 {[%clk 0:00:54.1]} 43... Ra1+ {[%clk 0:00:05.5]} 44. Ke2
{[%clk 0:00:52.7]} 44... Ra2+ {[%clk 0:00:05.5]} 45. Ke3 {[%clk 0:00:52.9]}
45... Ne5 {[%clk 0:00:05.1]} 46. Rd5 {[%clk 0:00:51.9]} 46... Nc6 {[%clk
0:00:03.2]} 47. Rxg4+ {[%clk 0:00:51.7]} 47... Kf6 {[%clk 0:00:03.9]} 48. Rf4+
{[%clk 0:00:51.4]} 48... Ke6 {[%clk 0:00:04.4]} 49. Re4+ {[%clk 0:00:51.6]}
49... Kf7 {[%clk 0:00:04.4]} 50. Rd7+ {[%clk 0:00:51.6]} 50... Kf8 {[%clk
0:00:04.9]} 51. Rh4 {[%clk 0:00:50.3]} 51... Kg8 {[%clk 0:00:05.4]} 52. Rhh7
{[%clk 0:00:45.5]} 52... Rb2 {[%clk 0:00:04.7]} 53. Rdg7+ {[%clk 0:00:45.6]}
53... Kf8 {[%clk 0:00:04.7]} 54. Rc7 {[%clk 0:00:45.6]} 54... Rxb3+ {[%clk
0:00:05.1]} 55. Kd2 {[%clk 0:00:45.1]} 55... Kg8 {[%clk 0:00:04.8]} 56. Rhd7
{[%clk 0:00:37.7]} 1-0